Cogmind - Beta 13 @@@ ROGUE MODE // 2024.04.02 @ 23:35:37 Player: gLaczier Result: Destroyed by C-40 Crusher with Compactor Performance ------------- Evolutions (4) 2000 Regions Visited (9) 1800 Robots Destroyed (200) 1000 Value Destroyed (7248) 7248 Prototype IDs (2) 40 Alien Tech Used (0) 0 Bonus (1243) 1243 TOTAL SCORE: 13331 Bonus ------- High Alert Combat Kills 1043 Entered Garrisons 200 Cogmind --------- Core Integrity 0/850 Matter 140/300 Energy 100/100 System Corruption 0% Temperature Cool (0) Movement Core (50) Location -6/Waste Parts ------- > --- POWER (2) -------- (None) > --- PROPULSION (3) --- (None) > --- UTILITY (6) ------ Advanced Targeting Computer Improved Target Analyzer Core Analyzer > --- WEAPON (4) ------- (None) > --- INVENTORY (5) ---- Armored Huge Wheel Armored Huge Wheel Peak State ------------ > --- POWER ------------ Improved Deuterium Engine Improved Deuterium Engine > --- PROPULSION ------- Flexi-carbon Leg Flexi-carbon Leg Flexi-carbon Leg > --- UTILITY ---------- Advanced Heat Sink Large Storage Unit Advanced Targeting Computer Advanced Targeting Computer Core Analyzer Corruption Screen > --- WEAPON ----------- Heavy Laser Gatling Laser Heavy Particle Cannon > --- INVENTORY -------- Light Angular Momentum Engine Carbon-fiber Leg Improved Carbon-fiber Leg Improved Heat Sink Advanced Heat Sink Huge Storage Unit Improved Target Analyzer Shock Absorption System Drone Bay Magnetic Acceleration Cannon [Rating: 58] Favorites ----------- Power Deuterium Engine Engine Deuterium Engine Power Core Light Nuclear Core Propulsion Armored Treads Treads Armored Treads Leg Titanium Leg Wheel Wheel Hover Unit Hover Unit Utility Advanced Targeting Computer Device Improved Heat Sink Storage Large Storage Unit Processor Advanced Targeting Computer Protection Core Shielding Weapon Heavy Laser Energy Gun Heavy Laser Energy Cannon Ion Cannon Ballistic Gun High-powered Shotgun Ballistic Cannon Gauss Cannon Launcher Grenade Launcher Build | -11 -10 -10 -9 -8 -8 -8 -7 -6 -6 ------- Run | Yrd Mat Min Mat Mat Gar Mat Fac Fac Was Slots Evolved 8 | . . . 2 2 . . 2 2 . Power 1 | . . . . . . . 1 . . Propulsion 1 | . . . 1 . . . . . . Utility 4 | . . . 1 1 . . 1 1 . Weapon 2 | . . . . 1 . . . 1 . Parts Attached 151 | 6 10 3 26 10 1 13 43 35 4 Power 30 | 1 1 2 5 . 1 1 8 9 2 Engine 20 | 1 1 2 5 . 1 1 2 7 . Core 10 | . . . . . . . 6 2 2 Reactor . | . . . . . . . . . . Propulsion 53 | 2 4 . 10 1 . 5 15 16 . Treads 18 | . . . 6 1 . 5 6 . . Leg 21 | . . . . . . . 6 15 . Wheel 13 | 2 4 . 3 . . . 3 1 . Hover 1 | . . . 1 . . . . . . Flight . | . . . . . . . . . . Utility 30 | 1 3 . 7 3 . 4 8 3 1 Device 14 | . 3 . 4 2 . 1 2 2 . Storage 5 | 1 . . 1 . . 2 . 1 . Processor 9 | . . . 1 1 . . 6 . 1 Hackware . | . . . . . . . . . . Protection 2 | . . . 1 . . 1 . . . Artifact . | . . . . . . . . . . Weapon 38 | 2 2 1 4 6 . 3 12 7 1 Energy Gun 9 | 1 . . . 1 . 1 2 4 . Energy Cannon 9 | . . 1 . 2 . 2 3 1 . Ballistic Gun 11 | 1 1 . 3 2 . . 2 1 1 Ballistic Cannon 4 | . . . . . . . 3 1 . Launcher 5 | . 1 . 1 1 . . 2 . . Special Weapon . | . . . . . . . . . . Impact Weapon . | . . . . . . . . . . Slashing Weapon . | . . . . . . . . . . Piercing Weapon . | . . . . . . . . . . Special Melee Weapon . | . . . . . . . . . . Unidentified Prototypes . | . . . . . . . . . . Parts Lost 85 | . 2 3 9 5 2 7 25 26 6 Power 20 | . . 1 2 . 1 1 7 6 2 Propulsion 26 | . 1 . 4 . 1 3 8 8 1 Utility 10 | . . 1 . 1 . . 4 2 2 Weapon 29 | . 1 1 3 4 . 3 6 10 1 Highest Loss Streak 6 | . 1 2 5 3 1 1 6 6 6 To Critical Strikes 1 | . . . . . . . . 1 . Average Slot Usage (%) 92 | . 95 86 96 93 98 96 94 80 59 Engine 8 | . 14 12 10 9 8 8 6 5 5 Core 2 | . . . . . . . 7 3 . Treads 14 | . . . 20 26 26 23 12 . . Leg 5 | . . . . . . . 8 18 17 Wheel 4 | . 27 28 8 . . . . . . Device 9 | . 10 3 16 12 9 9 6 5 6 Storage 8 | . 14 14 11 9 9 9 7 5 6 Processor 11 | . . . 2 2 9 9 18 25 20 Protection 4 | . . . 3 9 9 9 2 . . Energy Gun 4 | . 7 . . 4 . 4 4 6 . Energy Cannon 7 | . . 9 3 5 18 17 5 3 . Ballistic Gun 7 | . 14 14 14 8 9 5 4 . 3 Ballistic Cannon 1 | . . . . . . . 4 2 . Launcher 1 | . 6 3 4 5 . . . . . Naked Turns . | . . . . . . . . . . Heaviest Build 107 | 12 17 17 37 48 41 48 57 107 96 Greatest Support 63 | 26 32 20 60 60 60 60 63 60 48 Greatest Overweight (x) 7 | . 1 . 7 . 1 1 2 2 1 Average Overweight (x) . | . . . . . . . . . 1 Largest Inventory Capacity 25 | 8 8 8 15 15 15 25 15 25 25 Average Capacity 13 | 7 8 8 9 15 15 15 15 18 25 Most Carried 15 | 4 8 6 12 12 14 15 15 13 13 Average Carried 10 | . 6 4 6 9 12 13 12 8 11 Final Capacity 25 | 8 8 8 15 15 15 15 15 25 5 Final Carried 14 | . 7 5 12 12 14 13 12 12 4 Class Distribution -------------------- 40% | Gunner 40% | Mutant 12% | Scavenger-Gunner 4% | Scavenger-Mutant Dominant Class ---------------- Mutant | -10/Materials Mutant | -10/Mines Mutant | -9/Materials Tank | -8/Materials Gunner | -8/Garrison Gunner | -8/Materials Gunner | -7/Factory Scavenger-Gunner | -6/Factory Mutant | -6/Waste Resources | -11 -10 -10 -9 -8 -8 -8 -7 -6 -6 ----------- Run | Yrd Mat Min Mat Mat Gar Mat Fac Fac Was Matter Collected 3612 | 221 282 72 484 381 57 222 1378 515 . Remotely . | . . . . . . . . . . Salvage Created 7308 | . 580 59 744 496 375 1074 2209 1771 . Parts 392 | . 43 7 54 31 25 53 114 65 . Haulers Intercepted 1 | . . . 1 . . . . . . Recyclers Shooed 2 | . . . . . . . 1 1 . Parts Field Recycled 21 | . . . 3 18 . . . . . Retrieved Matter 117 | . . . 21 96 . . . . . Parts Self-Destructed . | . . . . . . . . . . Prevented . | . . . . . . . . . . Kills | -11 -10 -10 -9 -8 -8 -8 -7 -6 -6 ------- Run | Yrd Mat Min Mat Mat Gar Mat Fac Fac Was Combat Hostiles Destroyed 169 | . 17 4 15 15 15 21 45 37 . Guns 74 | . 12 1 7 10 3 5 18 18 . Cannons 69 | . . 1 6 1 12 14 19 16 . AOE 23 | . 5 2 2 4 . 1 8 1 . Classes Destroyed 17 | . 3 1 4 4 . 1 4 . . Worker 4 | . . . . . . 1 2 1 . Builder 4 | . . . 1 2 . . . 1 . Hauler 1 | . . . 1 . . . . . . Recycler 2 | . . . . . . . 2 . . Mechanic 2 | . . . . 1 . . 1 . . Operator 3 | . . . 1 . . 1 . 1 . Watcher 17 | . 3 . 5 . . 3 4 2 . Swarmer 47 | . 8 3 3 3 10 3 11 6 . Grunt 67 | . 9 . 3 7 . 8 22 18 . Brawler 3 | . . . . 1 . . . 2 . Duelist 2 | . . . . 1 . . 1 . . Sentry 29 | . . . 9 1 4 6 4 5 . Specialist 2 | . . . . . . . 2 . . Hunter 10 | . . . . 2 1 4 . 3 . Programmer 7 | . . . . . . . 4 3 . Heavy 1 | . . . . . . . 1 . . Assembled 1 | . . 1 . . . . . . . Best Kill Streak 13 | . 4 3 6 6 9 3 13 5 . Combat Bots Only 11 | . 4 3 3 4 9 3 11 5 . Max Kills in Single Turn 3 | . 2 3 2 3 2 2 2 2 . Gunslinging 1 | . . . . . . . 1 . . Exploded 2 | . 2 2 1 1 . 1 2 1 . Melee . | . . . . . . . . . . Uniques/NPCs Destroyed . | . . . . . . . . . . Combat | -11 -10 -10 -9 -8 -8 -8 -7 -6 -6 -------- Run | Yrd Mat Min Mat Mat Gar Mat Fac Fac Was Hostile Shots Fired 1112 | . 66 13 127 81 67 111 330 313 4 Missed 324 | . 21 5 31 22 23 29 101 92 . Damage Taken 11757 | . 451 226 1394 1057 479 1128 3291 3526 205 Core 1999 | . 104 60 285 74 45 96 461 742 132 Absorbed by Shields . | . . . . . . . . . . Redirected to Shielding 81 | . . . . 16 10 20 35 . . Core Remaining (%) 51 | 100 . 34 28 . . 60 34 . . Volleys Fired 524 | . 56 9 87 38 20 60 128 124 2 Largest 3 | . 2 2 2 3 3 3 3 3 1 Hottest 224 | . 60 80 80 153 153 198 207 224 35 Shots Fired 1079 | . 88 14 149 81 54 159 291 241 2 Gun 617 | . 80 10 105 61 14 61 138 146 2 Cannon 424 | . . 3 38 12 40 98 139 94 . Launcher 38 | . 8 1 6 8 . . 14 1 . Special . | . . . . . . . . . . Kinetic 501 | . 56 10 105 35 14 29 177 73 2 Thermal 454 | . . 3 38 38 40 115 53 167 . Explosive 14 | . . . 6 8 . . . . . Electromagnetic 110 | . 32 1 . . . 15 61 1 . Robot Hit Streak 22 | . 5 2 10 11 10 15 14 22 5 Robot Miss Streak 9 | . 4 4 5 3 3 4 9 4 . Penetration Max 1 | . . . . . . . 1 . . Secondary Targets 4 | . . . . 2 . . 2 . . Max Gunslinging Chain 1 | . . . . 1 . . 1 . . Shots Hit Robots 705 | . 46 5 89 60 31 106 186 180 2 Core Hits 365 | . 26 6 35 36 19 45 100 97 1 Critical Kills 1 | . . . . . . 1 . . . Critical Parts Destroyed 3 | . . . . 1 . . 2 . . Critical Strikes 21 | . . . . 3 . 2 9 7 . Burn 9 | . . . . 2 . 1 1 5 . Meltdown 1 | . . . . . . 1 . . . Destroy 3 | . . . . 1 . . 2 . . Blast 8 | . . . . . . . 6 2 . Melee Attacks . | . . . . . . . . . . Impact . | . . . . . . . . . . Slashing . | . . . . . . . . . . Piercing . | . . . . . . . . . . Sneak Attacks . | . . . . . . . . . . Combat Hostiles . | . . . . . . . . . . Follow-up Attacks . | . . . . . . . . . . Damage Inflicted 16080 | . 931 132 1538 1603 649 2183 4733 4260 51 Guns 7154 | . 573 28 871 934 97 643 1670 2287 51 Cannons 6437 | . . 51 453 130 552 1432 2042 1777 . Explosions 2412 | . 357 53 204 539 . 98 1003 158 . Melee . | . . . . . . . . . . Ramming 77 | . 1 . 10 . . 10 18 38 . Kinetic 6213 | . 370 28 871 585 97 298 2657 1256 51 Thermal 6987 | . 126 81 453 479 552 1457 1031 2808 . Explosive 877 | . . . 204 539 . . . 134 . Electromagnetic 1926 | . 434 23 . . . 418 1027 24 . Impact . | . . . . . . . . . . Slashing . | . . . . . . . . . . Piercing . | . . . . . . . . . . Highest Corruption 3 | . 1 1 1 . . 3 2 . . Average Corruption 1 | . 1 1 1 . . 2 1 . . Corruption Purged . | . . . . . . . . . . Corruption Blocked 3 | . . . . . . . . 3 . Effects 39 | . 2 2 11 . . 9 15 . . Message Errors 5 | . . . 2 . . 2 1 . . Matter Fused 11 | . . . 3 . . 2 6 . . Heat Flow Errors 3 | . 1 . 1 . . . 1 . . Energy Discharges 6 | . . . 1 . . 4 1 . . Parts Rejected 1 | . . 1 . . . . . . . Data Loss (minor) 9 | . 1 . 3 . . . 5 . . Data Loss (major) 1 | . . . . . . . 1 . . Misfires 1 | . . 1 . . . . . . . Alerts 1 | . . . 1 . . . . . . Weapon Failures 1 | . . . . . . 1 . . . Overload Shots . | . . . . . . . . . . Overflow Damage 147 | . . . . 9 1 13 51 73 . Projectiles 69 | . . . . . 1 13 27 28 . Explosions 78 | . . . . 9 . . 24 45 . Melee . | . . . . . . . . . . Knockbacks 24 | . . . . . . . 14 10 . Impact 1 | . . . . . . . . 1 . Kinetic 22 | . . . . . . . 13 9 . Secondary 1 | . . . . . . . 1 . . Self-Inflicted Damage 329 | . 12 . 32 35 . 24 82 144 . Shots 8 | . 1 . 1 1 . 1 2 2 . Rammed 8 | . 1 . 3 . . 1 3 . . Targets Rammed 14 | . 1 . 4 . . 1 5 2 1 Kicked 3 | . . . . . . . . 2 1 Crushed 3 | . . . 1 . . . 2 . . Highest Temperature 475 | . 196 31 315 172 171 279 475 465 . Average Temperature 108 | . 42 16 79 54 57 73 150 126 . Received Heat Transfer 2625 | . 132 . 468 234 45 306 681 759 . Effects 18 | . . . 1 . . . 16 1 . Shutdowns 9 | . . . . . . . 9 . . Energy Bleed 4 | . . . 1 . . . 2 1 . Interference 2 | . . . . . . . 2 . . Matter Decay 1 | . . . . . . . 1 . . Damage (major) 2 | . . . . . . . 2 . . Siege Activations . | . . . . . . . . . . Robots Corrupted . | . . . . . . . . . . Combat Hostiles . | . . . . . . . . . . Parts Fried 7 | . 3 . . . . 1 3 . . Impact Corruptions . | . . . . . . . . . . Robots Melted 3 | . . . . . . 1 . 2 . Combat Hostiles 3 | . . . . . . 1 . 2 . Parts Melted 33 | . . . 2 2 5 5 5 14 . Heat Transferred 13690 | . 50 111 962 1147 1073 2627 1724 5996 . Parts Sabotaged . | . . . . . . . . . . Parts Stolen . | . . . . . . . . . . Parts Stripped . | . . . . . . . . . . Power Chain Reactions 9 | . 3 1 . . . 1 4 . . Alert | -11 -10 -10 -9 -8 -8 -8 -7 -6 -6 ------- Run | Yrd Mat Min Mat Mat Gar Mat Fac Fac Was Peak Influence 903 | . 346 145 287 404 534 522 903 818 282 Initial 442 | . . 82 48 25 164 260 208 442 282 Average 300 | . 152 126 119 223 379 284 317 629 267 Maximum Alert Level 3 | . 1 . 1 2 2 2 3 3 1 Low Security (%) 34 | 100 67 100 85 30 9 12 27 . . Level 1 37 | . 32 . 14 69 29 78 39 . 100 Level 2 22 | . . . . . 61 9 26 74 . Level 3 5 | . . . . . . . 6 25 . Level 4 . | . . . . . . . . . . Level 5 . | . . . . . . . . . . High Security . | . . . . . . . . . . Max Security . | . . . . . . . . . . Squads Dispatched 47 | . 5 . 2 5 . 5 16 14 . Investigation 12 | . 1 . 1 1 . 3 2 4 . Extermination 7 | . . . . . . . 4 3 . Reinforcement 15 | . 4 . 1 1 . 2 6 1 . Assault 2 | . . . . . . . 2 . . Garrison 11 | . . . . 3 . . 2 6 . Intercept . | . . . . . . . . . . Searches Triggered . | . . . . . . . . . . Construction Impeded 1 | . . . . . . . 1 . . Haulers Reinforced . | . . . . . . . . . . Active Scanning Responses . | . . . . . . . . . . Cargo Convoy Interrupts 1 | . . . . . . . 1 . . Stealth | -11 -10 -10 -9 -8 -8 -8 -7 -6 -6 --------- Run | Yrd Mat Min Mat Mat Gar Mat Fac Fac Was Distress Signals 8 | . 1 . 2 . . . 1 4 . Communications Jammed . | . . . . . . . . . . Distress Signals . | . . . . . . . . . . Times Spotted 231 | . 26 7 22 17 15 26 61 53 4 Peak Tracking Total 8 | . 4 3 4 4 8 3 6 5 4 Tactical Retreats 9 | . . . . . 1 3 2 3 . Traps | -11 -10 -10 -9 -8 -8 -8 -7 -6 -6 ------- Run | Yrd Mat Min Mat Mat Gar Mat Fac Fac Was Traps Triggered 10 | . 1 . 2 1 2 2 1 1 . Indirectly . | . . . . . . . . . . Trap Hack Attempts . | . . . . . . . . . . Triggered . | . . . . . . . . . . Disarmed . | . . . . . . . . . . Reprogrammed . | . . . . . . . . . . Reused . | . . . . . . . . . . Traps Extracted . | . . . . . . . . . . Installed . | . . . . . . . . . . Triggered 5 | . . . . . . . 5 . . Machines | -11 -10 -10 -9 -8 -8 -8 -7 -6 -6 ---------- Run | Yrd Mat Min Mat Mat Gar Mat Fac Fac Was Machines Disabled 18 | . 3 . 1 1 . 4 6 3 . Max in Single Turn 3 | . 2 . 1 1 . 1 2 3 . Garrison Access 1 | . . . . . . . 1 . . Machines Repaired . | . . . . . . . . . . Machines Dismantled . | . . . . . . . . . . Machines Sabotaged . | . . . . . . . . . . Overloaded Fab Kills . | . . . . . . . . . . Hacking | -11 -10 -10 -9 -8 -8 -8 -7 -6 -6 --------- Run | Yrd Mat Min Mat Mat Gar Mat Fac Fac Was Machines Accessed 38 | . 3 . 10 4 2 5 7 7 . Terminals 22 | . 1 . 6 2 2 4 4 3 . Fabricators 3 | . . . . . . . . 3 . Repair Stations 2 | . . . 1 . . . 1 . . Recycling Units 6 | . 2 . 1 1 . 1 1 . . Scanalyzers 4 | . . . 2 . . . 1 1 . Garrison Access 1 | . . . . 1 . . . . . Total Hacks 101 | . 9 . 28 7 5 16 14 22 . Successful 60 | . 9 . 20 5 . 8 9 9 . Failed 41 | . . . 8 2 5 8 5 13 . Catastrophic 6 | . . . 1 1 . 1 1 2 . Database Lockouts . | . . . . . . . . . . Manual 15 | . . . 1 2 3 2 1 6 . Terminals 61 | . 3 . 18 3 5 13 8 11 . Fabricators 9 | . . . . . . . . 9 . Repair Stations 4 | . . . 2 . . . 2 . . Recycling Units 14 | . 6 . 1 3 . 3 1 . . Scanalyzers 12 | . . . 7 . . . 3 2 . Garrison Access 1 | . . . . 1 . . . . . Terminal Hacks 35 | . 3 . 12 2 . 7 5 6 . Record 15 | . 2 . 6 . . 5 1 1 . Prototype ID Bank 1 | . . . . 1 . . . . . Open DSF 3 | . . . . . . . 2 1 . Emergency Access Points 3 | . . . 1 . . 1 . 1 . Alert Level 6 | . 1 . 2 . . 1 1 1 . Unreport Threat 3 | . . . . 1 . . 1 1 . Maintenance Status 2 | . . . 1 . . . . 1 . Investigation Status 1 | . . . 1 . . . . . . Zone Layout 1 | . . . 1 . . . . . . Fabricator Hacks 1 | . . . . . . . . 1 . Network Status 1 | . . . . . . . . 1 . Repair Station Hacks 1 | . . . . . . . 1 . . Scan Component 1 | . . . . . . . 1 . . Recycling Unit Hacks 11 | . 6 . 1 2 . 1 1 . . Process 3 | . 2 . . 1 . . . . . Report Inventory 6 | . 2 . 1 1 . 1 1 . . Retrieve Matter 2 | . 2 . . . . . . . . Scanalyzer 11 | . . . 7 . . . 2 2 . Insert Component 6 | . . . 4 . . . 1 1 . Analyze 5 | . . . 3 . . . 1 1 . Garrison Access Hacks 1 | . . . . 1 . . . . . Unlock Access 1 | . . . . 1 . . . . . Unauthorized Hacks . | . . . . . . . . . . Terminals . | . . . . . . . . . . Fabricators . | . . . . . . . . . . Repair Stations . | . . . . . . . . . . Recycling Units . | . . . . . . . . . . Scanalyzers . | . . . . . . . . . . Garrison Access . | . . . . . . . . . . Data Cores Recovered 2 | . . . 1 . . . . 1 . Used . | . . . . . . . . . . Hacking Detections 25 | . 1 . 5 1 2 5 5 6 . Full Trace Events 15 | . 1 . 2 1 1 4 2 4 . Feedback Events 3 | . . . 1 . . . . 2 . Corruption 3 | . . . 1 . . . . 2 . Feedback Blocked . | . . . . . . . . . . Robot Schematics Acquired . | . . . . . . . . . . Robots Built . | . . . . . . . . . . Authchips . | . . . . . . . . . . Time . | . . . . . . . . . . Total Robot Build Rating . | . . . . . . . . . . Part Schematics Acquired 5 | . . . 3 . . . 1 1 . Parts Built . | . . . . . . . . . . Authchips . | . . . . . . . . . . Time . | . . . . . . . . . . Total Part Build Rating . | . . . . . . . . . . Parts Repaired . | . . . . . . . . . . Time . | . . . . . . . . . . Parts Recycled . | . . . . . . . . . . Recycled Matter 40 | . 37 . . 3 . . . . . Retrieved Matter 37 | . 37 . . . . . . . . Retrieved Components . | . . . . . . . . . . Parts Scanalyzed 5 | . . . 3 . . . 1 1 . Part Schematics Acquired 5 | . . . 3 . . . 1 1 . Parts Damaged . | . . . . . . . . . . Bothacking | -11 -10 -10 -9 -8 -8 -8 -7 -6 -6 ------------ Run | Yrd Mat Min Mat Mat Gar Mat Fac Fac Was Used RIF Installer . | . . . . . . . . . . Robots Hacked . | . . . . . . . . . . Non-combat . | . . . . . . . . . . Combat . | . . . . . . . . . . Robot Hacks Applied . | . . . . . . . . . . Relay Couplers Released . | . . . . . . . . . . Fabnet Peak Effective % . | . . . . . . . . . . Robots Rewired . | . . . . . . . . . . Allies Hacked . | . . . . . . . . . . Hacks Repelled . | . . . . . . . . . . Allies | -11 -10 -10 -9 -8 -8 -8 -7 -6 -6 -------- Run | Yrd Mat Min Mat Mat Gar Mat Fac Fac Was Total Allies 1 | . . . . . . . . . 1 Largest Group 1 | . . . . . . . . . 1 Highest-Rated Group 31 | . . . . . . . . . 31 Highest-Rated Ally 31 | . . . . . . . . . 31 Total Orders . | . . . . . . . . . . Ally Attacks 5 | . . . . . . . . . 5 Total Damage 84 | . . . . . . . . . 84 Kills . | . . . . . . . . . . Allies Corrupted . | . . . . . . . . . . Allies Melted . | . . . . . . . . . . Intel | -11 -10 -10 -9 -8 -8 -8 -7 -6 -6 ------- Run | Yrd Mat Min Mat Mat Gar Mat Fac Fac Was Robot Analysis Total . | . . . . . . . . . . Derelict Logs Recovered 1 | . . 1 . . . . . . . Drone Launches . | . . . . . . . . . . Drone Recoveries . | . . . . . . . . . . Exploration | -11 -10 -10 -9 -8 -8 -8 -7 -6 -6 ------------- Run | Yrd Mat Min Mat Mat Gar Mat Fac Fac Was Turns Passed 10079 | 126 870 183 1678 560 344 2106 2580 1554 78 Spaces Moved 5401 | 44 686 187 944 246 158 998 1399 704 35 Core 13 | 12 . . 1 . . . . . . Treads 2739 | . . . 591 246 158 998 746 . . Legs 1301 | . . . . . . . 562 704 35 Wheels 1344 | 32 686 187 348 . . . 91 . . Hover 4 | . . . 4 . . . . . . Flight . | . . . . . . . . . . Fastest Speed 50 | 50 80 80 80 170 170 163 105 120 190 Average Speed 148 | 79 96 80 141 170 175 186 148 159 190 Slowest Speed 400 | 90 115 80 400 170 250 250 320 260 190 Overloaded Moves . | . . . . . . . . . . Propulsion Burnouts . | . . . . . . . . . . Robots Hopped . | . . . . . . . . . . Cave-ins Triggered . | . . . . . . . . . . Exploration Rate (%) 42 | 4 96 30 75 23 41 68 36 17 31 Regions Visited 9 Branch Regions 1 Pre-discovered Areas . | . . . . . . . . . . Known Exits Taken 1 | . . . . 1 . . . . . Unknown Exits Taken 6 | 1 1 1 1 . . 1 1 . . Scrap Searched . | . . . . . . . . . . Spaces Dug . | . . . . . . . . . . Terrain Destroyed 214 | . 10 3 26 45 . 12 68 50 . Melee . | . . . . . . . . . . Projectile 36 | . . . . . . 4 27 5 . AOE 178 | . 10 3 26 45 . 8 41 45 . Terrain Rammed . | . . . . . . . . . . Walls Destroyed . | . . . . . . . . . . Machines Disabled . | . . . . . . . . . . Actions | -11 -10 -10 -9 -8 -8 -8 -7 -6 -6 --------- Run | Yrd Mat Min Mat Mat Gar Mat Fac Fac Was Total 6527 | 135 806 208 1151 316 182 1116 1645 925 43 Wait 200 | 80 34 3 36 12 1 23 5 6 . Move 5393 | 43 685 186 943 245 157 997 1398 704 35 Hop . | . . . . . . . . . . Pick Up 172 | 6 15 3 37 9 3 15 46 37 1 Fast Attach . | . . . . . . . . . . Attach 117 | 6 3 3 15 9 1 9 38 29 4 Detach 8 | . . . 1 1 . . 2 4 . Swap 34 | . 7 . 11 1 . 4 5 6 . Drop 63 | . 5 2 17 1 . 7 18 13 . Fire 524 | . 56 9 87 38 20 60 128 124 2 Melee . | . . . . . . . . . . Ram 1 | . 1 . . . . . . . . Kick 3 | . . . . . . . . 2 1 Crush 10 | . . . 4 . . 1 5 . . Escape Stasis . | . . . . . . . . . . Rewire 2 | . . 2 . . . . . . . Trap . | . . . . . . . . . . Miscellaneous . | . . . . . . . . . . Route ------- -11/Scrapyard -10/Materials (discovered 5 exits: *Mat x3 / [*Min] / [Sub]) -10/Mines -9/Materials (discovered 5 exits: *Mat x2 / *Min / [*Sto x2]) -8/Materials -8/Garrison -8/Materials (discovered 2 exits: *Fac x2) -7/Factory -6/Factory -6/Waste History --------- Turn | Location | Event 10 | -11/Scrapyard | Discovered new exit (range 16) 127 | -11/Scrapyard | Entered Materials 305 | -10/Materials | Build established: Mutant 360 | -10/Materials | Discovered new exit (range 9) 447 | -10/Materials | Discovered new exit (range 10) 585 | -10/Materials | Discovered new exit (range 8) 718 | -10/Materials | Discovered new exit (range 6) 972 | -10/Materials | Discovered new exit (range 7) 997 | -10/Materials | Entered Mines 998 | -10/Mines | YI-UF0 nonchalantly dropped a Grenade Launcher on the ground 1005 | -10/Mines | Met a Derelict bent on vengeance 1016 | -10/Mines | Discovered new exit (range 9) 1035 | -10/Mines | Assembled infested the area 1052 | -10/Mines | Core integrity fell below 50% 1055 | -10/Mines | Met 8R-AWN 1180 | -10/Mines | Entered Materials 1180 | -9/Materials | Evolved 2 slots: Propulsion x1, Utility x1 1181 | -9/Materials | Identified exit to Mines 1494 | -9/Materials | Discovered new exit (range 9) 1648 | -9/Materials | Core integrity fell below 50% 1681 | -9/Materials | Lost 5 parts (1p2n2w) 1884 | -9/Materials | Discovered new exit (range 16) 2134 | -9/Materials | Discovered new exit (range 4) 2298 | -9/Materials | Discovered new exit (range 6) 2858 | -9/Materials | Entered another Materials area 2858 | -8/Materials | Evolved 2 slots: Utility x1, Weapon x1 3037 | -8/Materials | Garrison activated, responded to threat 3221 | -8/Materials | Lost 3 parts (3w) 3417 | -8/Materials | Identified exit to Garrison 3418 | -8/Materials | Entered Garrison 3543 | -8/Garrison | Build established: Gunner 3573 | -8/Garrison | Destroyed 9 combat bots 3582 | -8/Garrison | Triggered checkpoint 3667 | -8/Garrison | Discovered new exit (range 12) 3762 | -8/Garrison | Entered Materials 5138 | -8/Materials | Discovered new exit (range 12) 5650 | -8/Materials | Discovered new exit (range 4) 5868 | -8/Materials | Entered Factory 5868 | -7/Factory | Evolved 2 slots: Power x1, Utility x1 5903 | -7/Factory | Identified exit to DSF 6785 | -7/Factory | Lost 4 parts (1p1n1u1w) 6803 | -7/Factory | Build established: Scavenger-Gunner 6922 | -7/Factory | Lost 4 parts (1p1n1u1w) 7068 | -7/Factory | Garrison activated, responded to threat 7203 | -7/Factory | Discovered new exit (range 16) 7450 | -7/Factory | Lost 3 parts (2p1n) 7513 | -7/Factory | Cargo convoy interrupted 7602 | -7/Factory | Build established: Gunner 7914 | -7/Factory | Lost 3 parts (1u2w) 8181 | -7/Factory | Build established: Mutant 8248 | -7/Factory | Core integrity fell below 50% 8266 | -7/Factory | Garrison activated, responded to threat 8268 | -7/Factory | First assault squad dispatched 8318 | -7/Factory | Lost 6 parts (3n1u2w) 8326 | -7/Factory | Destroyed 11 combat bots 8448 | -7/Factory | Entered another Factory area 8448 | -6/Factory | Evolved 2 slots: Utility x1, Weapon x1 8529 | -6/Factory | Garrison activated, responded to threat 8864 | -6/Factory | Build established: Scavenger-Gunner 8984 | -6/Factory | Lost 3 parts (1p1n1w) 9354 | -6/Factory | Core integrity fell below 50% 9372 | -6/Factory | Lost 6 parts (1p1n1u3w) 9638 | -6/Factory | Lost 3 parts (1n2w) 9770 | -6/Factory | Garrison activated, responded to threat 9850 | -6/Factory | Core integrity fell below 20% 10002 | -6/Factory | Sucked down chute 10002 | -6/Factory | Entered Waste 10003 | -6/Waste | Met a frightened Derelict 10015 | -6/Waste | Spotted C-40 Crusher 10018 | -6/Waste | Spotted C-40 Crusher 10048 | -6/Waste | Spotted C-40 Crusher 10048 | -6/Waste | Spotted C-40 Crusher 10049 | -6/Waste | Spotted C-40 Crusher 10050 | -6/Waste | Spotted C-40 Crusher 10074 | -6/Waste | Crushed by Compactor (1 part destroyed, 1 dropped) 10077 | -6/Waste | Crushed by Compactor (1 part destroyed, 1 dropped) 10079 | -6/Waste | Crushed by Compactor (1 part destroyed, 1 dropped) 10080 | -6/Waste | Crushed by Compactor (1 part destroyed, 1 dropped) 10080 | -6/Waste | Destroyed by C-40 Crusher with Compactor Last Messages --------------- together we can make it." Acquired Railgun. 3G-KET(g) Carbon-fiber Leg crushed. 3G-KET(g) Lgt. Angular Momentum Engine crushed. 3G-KET(g) suffers critical hit (Destroy). 3G-KET(g) destroyed. Slug penetrates C-40 Crusher. Railgun crushed. Carbon-fiber Leg crushed. Lgt. Angular Momentum Engine destroyed. Corruption Screen crushed. Imp. Carbon-fiber Leg crushed. Lgt. Nuclear Core destroyed. Kicked C-40 Crusher. Carbon-fiber Leg crushed. Lgt. Nuclear Core crushed. Huge Storage Unit crushed. Adv. Heat Sink crushed. [Achievement: 5k Club] [Achievement: 10k Club] Map ----- +----------------------------------------------------+ | ?????????# #??????????????????????????????????? | | #######??# #??????? ???????????????????????? | | #??# #??????? #??????????????????????? | | #??#= #??????? #??????????????????????? | | ####*% #??????? #####??????????????????? | | ] ! = #??????? ???????????????????? | | #??????# ????????????????????? | | #??????# ?????????????????????? | | #??????# ??????????????????????? | | #### #??????# #??????????????????????? | | #??# #??????# #??????????????????????? | | #??# #??????# #??????????????????????? | | #######??# #??????# #??????????????????????? | | ???????### ######## #??????????????????????? | | ???????# #??????????????????????? | | ???????# CC #??????????????????????? | | ???????# CC #??????????????????????? | | ???????# #??????????????????????? | | ???????### ######## #??????????????????????? | | ?????????# #??????# #??????????????????????? | | ?????????# #??????# CC#??????????????????????? | | ?????????# #??????# CC#??????????????????????? | | ?????????# #????### ###????????????????????? | | ?????????######????# CCCC #????????????????????? | | ???????????????????# CCCC #????????????????????? | | ???????????????????# *@! #????????????????????? | | ???????????????????# = #????????????????????? | | ???????????????????# ! ] #????????????????????? | | ???????????????????# #????????????????????? | | ???????????????????# #????????????????????? | | ???????????????????# #????????????????????? | | ???????????????????##########????????????????????? | | ?????????????????????????????????????????????????? | | ?????????????????????????????????????????????????? | | ?????????????????????????????????????????????????? | | ?????????????????????????????????????????????????? | | ?????????????????????????????????????????????????? | | ?????????????????????????????????????????????????? | | ?????????????????????????????????????????????????? | | ?????????????????????????????????????????????????? | | ?????????????????????????????????????????????????? | | ?????????????????????????????????????????????????? | | ?????????????????????????????????????????????????? | | ?????????????????????????????????????????????????? | | ?????????????????????????????????????????????????? | | ?????????????????????????????????????????????????? | | ?????????????????????????????????????????????????? | | ?????????????????????????????????????????????????? | | ?????????????????????????????????????????????????? | | ?????????????????????????????????????????????????? | +----------------------------------------------------+ Best States ------------- Heat Dissipation 56 Energy Generation 29 Energy Capacity 480 Matter Stores 300 Matter Capacity 300 Sight Range 18 Robot Scan Range 15 Terrain Scan Density 10 Corruption Block 8 Core Shielding 20 Evasion (%) 55 Targeting Accuracy 16 Target Analysis 6 Core Analysis 6 Recoil Reduction 3 Authchip Count 2 Item Schematics ----------------- Grenade Launcher | -9/Materials | Scanalyzed Lgt. Ion Engine | -9/Materials | Scanalyzed Heat Sink | -9/Materials | Scanalyzed Shock Bomb Launcher | -7/Factory | Scanalyzed Hvy. Particle Cannon | -6/Factory | Scanalyzed Robot Schematics ------------------ None Fabricated ------------ Nothing Alien Tech Used ----------------- None Achievements -------------- 10k Club 5k Club I Survived The Infestation Librarian Loot Pinata Made in Tau Ceti IV Oops Please Form A Line Serviceable Loadout Significant Disruption Troublemaker Challenges ------------ None Game ------ Seed ImpactSupersonicBooster Manual? 0 Play Time 02:32:27 Cumulative 4.0 hours Start 2024.04.01 @ 20:25:06 End 2024.04.02 @ 23:35:37 Sessions 4 Manual Loads 0 Difficulty Rogue Special Mode None Game No. 4 Rogue 4 Adventurer 0 Explorer 0 Win Type - Total 0 Types 0/0/0/0/0/0/0/0/0 Lore% 3 Gallery% 7 Achievement% 9 Wizard Run 0 Options --------- Layout 1 ASCII 0 Keyboard 0 Movement Numpad Keybinds 0 Fullscreen 1 Font 24/Smallcaps Map View 50x35 Zoom Use 0% Tactical HUD 0 Map Filters NONE Filters NONE Steam 1 RUN: e18433c8-256f-4ac5-9d95-f37333c5af3d